fUST/lending_fUST_20251025
["ID","MTS","AMOUNT","RATE_DAILY","PERIOD"]
[392356981,1761399063964,-500.0,0.00018185,2]
[392356982,1761399063996,-1564.5,0.00018197,2]
[392356983,1761399064030,-300.0,0.00018197,2]
[392356984,1761399064063,-505.17218197,0.00018198,2]
[392356985,1761399064094,-500.0,0.00018198,2]
[392356986,1761399064125,-107.84563606,0.00018198,2]
[392356987,1761399064327,-392.15436394,0.00018198,2]
[392356988,1761399069373,-500.0,0.00018185,2]
[392356989,1761399069408,-500.0,0.00018185,2]
[392356990,1761399069440,-500.0,0.00018198,2]
[392356991,1761399069471,-500.0,0.00018198,2]
[392356992,1761399069501,-1169.25,0.00018198,2]
[392356993,1761399069532,-500.0,0.00018198,2]
[392356994,1761399069563,-568.57,0.00018198,2]
[392356995,1761399069974,-1524.37,0.00018198,2]
[392356996,1761399079691,221.88543242,0.00017996,2]
[392356997,1761399090667,160.5,0.000301,120]
[392356998,1761399092061,160.5,0.000301,120]
[392356999,1761399110071,196.0,0.00016,2]
[392357000,1761399110791,196.0,0.000167,2]
[392357001,1761399110833,196.0,0.000174,2]
[392357002,1761399123814,1457.64552184,0.000201,9]
[392357011,1761399148000,168.0,0.00017576,2]
[392357012,1761399152320,168.0,0.00017651,2]
[392357013,1761399173823,150.0,0.00017285,30]
[392357014,1761399216412,174.35744522,0.00017923,2]
[392357015,1761399230944,196.0,0.00016,2]
[392357016,1761399231276,196.0,0.0001642,2]
[392357017,1761399231574,196.0,0.0001684,2]
[392357018,1761399231866,196.0,0.0001726,2]
[392357019,1761399232169,196.0,0.0001768,2]
[392357020,1761399270750,5000.0,0.00017996,2]
[392357021,1761399293259,5000.0,0.00017996,2]
[392357022,1761399316268,1460.85962013,0.00017996,2]
[392357023,1761399350408,267.59759542,0.00016,2]
[392357024,1761399365349,395.3470981,0.00017944,2]
[392357025,1761399382986,2876.20568635,0.0001713,2]
[392357026,1761399383012,10000.01,0.0001713,2]
[392357027,1761399383038,8378.33462965,0.0001713,2]
[392357028,1761399390431,1621.67537035,0.00017996,2]
[392357029,1761399390459,255.22371411,0.00017996,2]
[392357030,1761399407632,1913.79288832,0.00017957,2]
[392357031,1761399419184,-330.99466164,0.00018023,2]
[392357032,1761399419216,-250.0,0.00018042,2]
[392357033,1761399419250,-388.0,0.00018044,2]
[392357034,1761399419281,-336.89351871,0.00018084,2]
[392357035,1761399419365,-388.0,0.0001809,2]
[392357036,1761399419395,-814.77222408,0.00018097,2]
[392357037,1761399419424,-814.77222407,0.00018098,2]
[392357038,1761399419455,-300.0,0.00018098,2]
[392357039,1761399419498,-814.77222407,0.00018099,2]
[392357040,1761399419529,-300.0,0.00018099,2]
[392357041,1761399419558,-223.60029486,0.00018099,2]
[392357042,1761399419944,-76.39970514,0.00018099,2]
[392357043,1761399419975,-1200.0,0.00018099,2]
[392357044,1761399420008,-300.0,0.00018099,2]
[392357045,1761399420040,-160.5,0.000181,2]
[392357046,1761399420071,-160.61361451,0.000181,2]
[392357047,1761399420102,-814.77222407,0.000181,2]
[392357048,1761399420132,-277.0537494,0.000181,2]
[392357049,1761399420163,-814.77222407,0.00018101,2]
[392357050,1761399420194,-1191.78696562,0.00018172,2]
[392357051,1761399420266,-8.21303438,0.00018172,2]
[392357052,1761399420296,-500.0,0.00018173,2]
[392357053,1761399420328,-500.0,0.00018173,2]
[392357054,1761399420358,-500.0,0.00018173,2]
[392357055,1761399420386,-500.0,0.00018173,2]
[392357056,1761399420417,-502.22635647,0.00018173,2]
[392357057,1761399420448,-500.0,0.00018173,2]
[392357058,1761399420483,-500.0,0.00018173,2]
[392357059,1761399420513,-500.0,0.00018173,2]
[392357060,1761399420544,-220.35520245,0.00018173,2]
[392357061,1761399420574,-500.0,0.00018173,2]
[392357062,1761399420604,-38.4208134,0.00018173,2]
[392357063,1761399420660,-461.5791866,0.00018173,2]
[392357064,1761399420689,-500.0,0.00018173,2]
[392357065,1761399420719,-500.0,0.00018173,2]
[392357066,1761399420749,-500.0,0.00018173,2]
[392357067,1761399420779,-500.0,0.00018173,2]
[392357068,1761399420808,-500.0,0.00018173,2]
[392357069,1761399420836,-502.94832276,0.00018173,2]
[392357070,1761399420866,-500.0,0.00018173,2]
[392357071,1761399420896,-500.0,0.00018173,2]
[392357072,1761399420927,-500.0,0.00018173,2]
[392357073,1761399421452,-500.0,0.00018173,2]
[392357074,1761399421487,-500.0,0.00018173,2]
[392357075,1761399421518,-298.03700708,0.00018183,2]
[392357076,1761399421548,-214.52481427,0.00018183,2]
[392357077,1761399421579,-500.0,0.00018183,2]
[392357078,1761399421610,-164.96883515,0.00018183,2]
[392357079,1761399421641,-500.0,0.00018183,2]
[392357080,1761399421672,-163.81782224,0.00018183,2]
[392357081,1761399421705,-500.0,0.00018183,2]
[392357082,1761399421735,-500.0,0.00018183,2]
[392357083,1761399421767,-500.0,0.00018183,2]
[392357084,1761399421941,-500.0,0.00018183,2]
[392357085,1761399422234,-315.0,0.00018147,2]
[392357086,1761399422268,-500.0,0.00018183,2]
[392357087,1761399422306,-500.0,0.00018183,2]
[392357088,1761399422345,-500.0,0.00018183,2]
[392357089,1761399422382,-500.0,0.00018183,2]
[392357090,1761399422415,-500.0,0.00018183,2]
[392357091,1761399422449,-500.0,0.00018183,2]
[392357092,1761399422486,-500.0,0.00018183,2]
[392357093,1761399422520,-500.0,0.00018183,2]
[392357094,1761399422556,-500.0,0.00018183,2]
[392357095,1761399422776,-500.0,0.00018183,2]
[392357096,1761399422809,-500.0,0.00018183,2]
[392357097,1761399422842,-500.0,0.00018183,2]
[392357098,1761399422874,-500.0,0.00018183,2]
[392357099,1761399422907,-338.27218719,0.00018183,2]
[392357100,1761399422941,-500.0,0.00018183,2]
[392357101,1761399422976,-500.0,0.00018183,2]
[392357102,1761399423011,-458.31975431,0.00018183,2]
[392357103,1761399423046,-500.0,0.00018183,2]
[392357104,1761399423083,-500.0,0.00018183,2]
[392357105,1761399423475,-500.0,0.00018183,2]
[392357106,1761399423508,-500.0,0.00018183,2]
[392357107,1761399423543,-500.0,0.00018183,2]
[392357108,1761399423577,-500.0,0.00018183,2]
[392357109,1761399423614,-500.0,0.00018183,2]
[392357110,1761399423650,-500.0,0.00018183,2]
[392357111,1761399423899,-476.26608067,0.00018183,2]
[392357112,1761399423935,-500.0,0.00018183,2]
[392357113,1761399423970,-500.0,0.00018183,2]
[392357114,1761399424005,-500.0,0.00018183,2]
[392357115,1761399428085,-300.0,0.00018182,2]
[392357116,1761399428127,-500.0,0.00018183,2]
[392357117,1761399428167,-500.0,0.00018183,2]
[392357118,1761399428207,-500.0,0.00018183,2]
[392357119,1761399428246,-500.0,0.00018183,2]
[392357120,1761399428286,-500.0,0.00018183,2]
[392357121,1761399428326,-500.0,0.00018183,2]
[392357122,1761399428365,-500.0,0.00018183,2]
[392357123,1761399428406,-500.0,0.00018183,2]
[392357124,1761399428442,-500.0,0.00018183,2]
[392357125,1761399429186,-500.0,0.00018183,2]
[392357126,1761399429221,-500.0,0.00018183,2]
[392357127,1761399429255,-500.0,0.00018183,2]
[392357128,1761399429287,-445.44478374,0.00018183,2]
[392357129,1761399429319,-500.0,0.00018183,2]
[392357130,1761399429352,-500.0,0.00018183,2]
[392357131,1761399429384,-500.0,0.00018183,2]
[392357132,1761399429417,-500.0,0.00018183,2]
[392357133,1761399429449,-500.0,0.00018183,2]
[392357134,1761399429483,-500.0,0.00018183,2]
[392357135,1761399429629,-500.0,0.00018183,2]
[392357136,1761399429661,-500.0,0.00018183,2]
[392357137,1761399429694,-500.0,0.00018183,2]
[392357138,1761399429725,-500.0,0.00018183,2]
[392357139,1761399429756,-500.0,0.00018183,2]
[392357140,1761399429784,-500.0,0.00018183,2]
[392357141,1761399429815,-500.0,0.00018183,2]
[392357142,1761399429847,-500.0,0.00018183,2]
[392357143,1761399429876,-489.20598898,0.00018183,2]
[392357144,1761399429906,-500.0,0.00018184,2]
[392357145,1761399430088,-500.0,0.00018184,2]
[392357146,1761399430120,-506.43498711,0.00018184,2]
[392357147,1761399430152,-500.0,0.00018184,2]
[392357148,1761399430183,-500.0,0.00018184,2]
[392357149,1761399430214,-500.0,0.00018184,2]
[392357150,1761399430244,-500.0,0.00018184,2]
[392357151,1761399430274,-506.79711542,0.00018184,2]
[392357152,1761399430304,-500.0,0.00018184,2]
[392357153,1761399430334,-500.0,0.00018184,2]
[392357154,1761399430363,-473.54579494,0.00018184,2]
[392357155,1761399446447,-501.35499499,0.00018172,2]
[392357156,1761399446481,-165.53408035,0.00018183,2]
[392357157,1761399446511,-26.45420506,0.00018184,2]
[392357158,1761399446543,-500.0,0.00018184,2]
[392357159,1761399446572,-500.0,0.00018184,2]
[392357160,1761399446601,-904.81,0.00018184,2]
[392357161,1761399446630,-1688.89,0.00018184,2]
[392357162,1761399446660,-500.0,0.00018184,2]
[392357163,1761399446828,-500.0,0.00018184,2]
[392357164,1761399446858,-816.46,0.00018184,2]
[392357165,1761399446892,-601.02270786,0.00018184,2]
[392357166,1761399446924,-500.0,0.00018184,2]
[392357167,1761399446955,-573.19,0.00018184,2]
[392357168,1761399446985,-1189.6,0.00018184,2]
[392357169,1761399447016,-743.1,0.00018184,2]
[392357170,1761399447243,-689.52,0.00018184,2]
[392357171,1761399447273,-500.0,0.00018184,2]
[392357172,1761399447304,-324.3747684,0.00018185,2]
[392357173,1761399447334,-500.0,0.00018185,2]
[392357174,1761399447582,-500.0,0.00018185,2]
[392357175,1761399447616,-500.0,0.00018185,2]
[392357176,1761399447645,-500.0,0.00018185,2]
[392357177,1761399447675,-500.0,0.00018185,2]
[392357178,1761399447707,-230.4504632,0.00018185,2]
[392357179,1761399447842,-1511.3195368,0.00018185,2]
[392357180,1761399447872,-568.66135755,0.00018185,2]
[392357181,1761399447904,-500.0,0.00018185,2]
[392357182,1761399447937,-500.0,0.00018185,2]
[392357183,1761399447968,-500.0,0.00018185,2]
[392357184,1761399448000,-500.0,0.00018185,2]
[392357185,1761399448031,-507.55074405,0.00018185,2]
[392357186,1761399448063,-324.9467232,0.00018185,2]
[392357187,1761399448338,-175.0532768,0.00018185,2]
[392357188,1761399448369,-500.0,0.00018185,2]
[392357189,1761399448399,-500.0,0.00018185,2]
[392357190,1761399448429,-500.0,0.00018185,2]
[392357191,1761399448460,-500.0,0.00018185,2]
[392357192,1761399448494,-500.0,0.00018185,2]
[392357193,1761399448527,-500.0,0.00018185,2]
[392357194,1761399448559,-507.63839291,0.00018185,2]
[392357195,1761399448590,-997.68666058,0.00018185,2]
[392357196,1761399448663,-639.25333942,0.00018185,2]
[392357197,1761399448694,-578.31,0.00018185,2]
[392357198,1761399448725,-500.0,0.00018185,2]
[392357199,1761399448755,-562.61,0.00018185,2]
[392357200,1761399448784,-500.0,0.00018185,2]
[392357201,1761399448814,-505.33,0.00018185,2]
[392357202,1761399448844,-500.0,0.00018185,2]
[392357203,1761399448874,-507.92667981,0.00018185,2]
[392357204,1761399448904,-500.0,0.00018185,2]
[392357205,1761399449128,-500.0,0.00018185,2]
[392357206,1761399449159,-1748.7,0.00018185,2]
[392357207,1761399449191,-1510.56,0.00018185,2]
[392357208,1761399449221,-500.0,0.00018185,2]
[392357209,1761399449251,-340.34928963,0.00018185,2]
[392357210,1761399449280,-300.79142074,0.00018185,2]
[392357211,1761399455291,-500.0,0.00018184,2]
[392357212,1761399455321,-199.20857926,0.00018185,2]
[392357213,1761399455350,-500.0,0.00018185,2]
[392357214,1761399455380,-1601.38,0.00018185,2]
[392357215,1761399455408,-500.0,0.00018185,2]
[392357216,1761399455439,-500.0,0.00018185,2]
[392357217,1761399455470,-588.1,0.00018185,2]
[392357218,1761399455500,-500.0,0.00018185,2]
[392357219,1761399455768,-500.0,0.00018185,2]
[392357220,1761399455798,-688.24,0.00018185,2]
[392357221,1761399455829,-500.0,0.00018185,2]
[392357222,1761399455858,-500.0,0.00018185,2]
[392357223,1761399455888,-500.0,0.00018185,2]
[392357224,1761399455918,-1193.82,0.00018185,2]
[392357225,1761399455950,-500.0,0.00018185,2]
[392357226,1761399455983,-500.0,0.00018185,2]
[392357227,1761399456062,-500.0,0.00018185,2]
[392357228,1761399456093,-500.0,0.00018185,2]
[392357229,1761399456126,-530.11,0.00018185,2]
[392357230,1761399456159,-500.0,0.00018185,2]
[392357231,1761399456195,-543.71,0.00018185,2]
[392357232,1761399456228,-500.0,0.00018185,2]
[392357233,1761399456263,-500.0,0.00018185,2]
[392357234,1761399456296,-500.0,0.00018185,2]
[392357235,1761399456326,-500.0,0.00018185,2]
[392357236,1761399456356,-352.37,0.00018185,2]
[392357237,1761399456518,-500.0,0.00018184,2]
[392357238,1761399456550,-147.63,0.00018185,2]
[392357239,1761399456579,-500.0,0.00018185,2]
[392357240,1761399456608,-500.0,0.00018185,2]
[392357241,1761399456637,-500.0,0.00018185,2]
[392357242,1761399456666,-900.14,0.00018185,2]
[392357243,1761399456695,-500.0,0.00018185,2]
[392357244,1761399456724,-500.0,0.00018185,2]
[392357245,1761399456754,-500.0,0.00018185,2]
[392357246,1761399456784,-404.47,0.00018185,2]
[392357247,1761399458396,-95.53,0.00018185,2]
[392357248,1761399458426,-524.16,0.00018185,2]
[392357249,1761399458456,-542.2,0.00018185,2]
[392357250,1761399458485,-500.0,0.00018185,2]
[392357251,1761399458521,-500.0,0.00018185,2]
[392357252,1761399458551,-1673.57,0.00018185,2]
[392357253,1761399458580,-546.79,0.00018185,2]
[392357254,1761399458610,-500.0,0.00018185,2]
[392357255,1761399458849,-500.0,0.00018185,2]
[392357256,1761399458879,-500.0,0.00018185,2]
[392357257,1761399458909,-500.0,0.00018185,2]
[392357258,1761399458941,-1104.35,0.00018185,2]
[392357259,1761399458972,-500.0,0.00018185,2]
[392357260,1761399459002,-827.24,0.00018185,2]
[392357261,1761399459032,-508.88502926,0.00018185,2]
[392357262,1761399459257,-1655.32,0.00018185,2]
[392357263,1761399459290,-1041.88,0.00018185,2]
[392357264,1761399459320,-500.0,0.00018185,2]
[392357265,1761399459353,-500.0,0.00018185,2]
[392357266,1761399459386,-500.0,0.00018185,2]
[392357267,1761399459416,-485.08,0.00018185,2]
[392357268,1761399459675,-635.45,0.00018185,2]
[392357269,1761399459704,-500.0,0.00018185,2]
[392357270,1761399459734,-500.0,0.00018185,2]
[392357271,1761399459761,-485.49673296,0.00018185,2]
[392357272,1761399459788,-602.9537546,0.00018185,2]
[392357273,1761399459817,-500.0,0.00018185,2]
[392357274,1761399459847,-580.49356921,0.00018185,2]
[392357275,1761399459876,-500.0,0.00018185,2]
[392357276,1761399459904,-500.0,0.00018185,2]
[392357277,1761399461327,-1200.0,0.00018184,2]
[392357278,1761399461360,-500.0,0.00018184,2]
[392357279,1761399461390,-469.24201841,0.00018185,2]
[392357280,1761399461421,-1499.31,0.00018185,2]
[392357281,1761399461452,-1201.77596318,0.00018185,2]
[392357282,1761399461641,-259.35403682,0.00018185,2]
[392357283,1761399461671,-2005.73,0.00018185,2]
[392357284,1761399461700,-500.0,0.00018185,2]
[392357285,1761399461729,-629.25,0.00018185,2]
[392357286,1761399461762,-500.0,0.00018185,2]
[392357287,1761399461790,-500.0,0.00018185,2]
[392357288,1761399461820,-351.93192636,0.00018185,2]
[392357289,1761399461915,-507.47807364,0.00018185,2]
[392357290,1761399462085,-1817.65,0.00018185,2]
[392357291,1761399462119,-500.0,0.00018185,2]
[392357292,1761399462153,-798.3,0.00018185,2]
[392357293,1761399462183,-620.66,0.00018185,2]
[392357294,1761399462215,-458.00385272,0.00018185,2]
[392357295,1761399462639,-595.82614728,0.00018185,2]
[392357296,1761399462668,-598.62,0.00018185,2]
[392357297,1761399462699,-1242.33,0.00018185,2]
[392357298,1761399462728,-500.0,0.00018185,2]
[392357299,1761399462756,-500.0,0.00018185,2]
[392357300,1761399462784,-500.0,0.00018185,2]
[392357301,1761399462813,-500.0,0.00018185,2]
[392357302,1761399462843,-500.0,0.00018185,2]
[392357303,1761399462960,-580.82,0.00018185,2]
[392357304,1761399462994,-2109.72,0.00018185,2]
[392357305,1761399463027,-500.0,0.00018185,2]
[392357306,1761399463058,-500.0,0.00018185,2]
[392357307,1761399463089,-500.0,0.00018185,2]
[392357308,1761399463122,-500.0,0.00018185,2]
[392357309,1761399470477,-362.36138715,0.00016,2]
[392357310,1761399470512,-2892.79716,0.00017909,2]
[392357311,1761399482720,185.78,0.00015135,2]
[392357312,1761399483259,185.78,0.00015135,2]
[392357313,1761399483303,185.75,0.00015135,2]
[392357314,1761399500480,-500.0,0.00018172,2]
[392357315,1761399500513,-300.0,0.00018183,2]
[392357316,1761399500546,-500.0,0.00018184,2]
[392357317,1761399500578,-500.0,0.00018184,2]
[392357318,1761399500610,-1218.35,0.00018184,2]
[392357319,1761399500641,-1776.74,0.00018184,2]
[392357320,1761399506368,-409.83,0.00018184,2]
[392357321,1761399506398,-500.0,0.00018184,2]
[392357322,1761399506428,-900.0,0.00018184,2]
[392357323,1761399506457,-568.22,0.00018184,2]
[392357324,1761399506487,-1748.17,0.00018184,2]
[392357325,1761399509116,898.77,0.00018184,2]
[392357326,1761399511867,324.4997612,0.00018184,2]
[392357327,1761399515038,524.3002388,0.00018184,2]
[392357328,1761399515063,2492.0797612,0.00018184,2]
[392357329,1761399533679,-1758.2,0.00018184,2]
[392357330,1761399533710,-1165.17,0.00018184,2]
[392357331,1761399533740,-1498.21,0.00018184,2]
[392357333,1761399539998,500.0,0.00018184,2]
[392357334,1761399543973,300.0,0.00018184,2]
[392357335,1761399545342,356.85,0.00018184,2]
[392357336,1761399545367,143.15,0.00018184,2]
[392357337,1761399552429,541.60348318,0.00018184,2]
[392357338,1761399556101,500.0,0.00018184,2]
[392357339,1761399562381,904.0,0.00018184,2]
[392357340,1761399566530,184.21230535,0.00018085,2]
[392357341,1761399566870,500.0,0.00018184,2]
[392357342,1761399566914,500.0,0.00018184,2]
[392357343,1761399566977,500.0,0.00018184,2]
[392357344,1761399567034,288.64145515,0.00018184,2]
[392357345,1761399568558,184.21230533,0.00018093,2]
[392357346,1761399569796,2263.83,0.00018184,2]
[392357347,1761399570575,184.21230533,0.000181,2]
[392357348,1761399570955,1901.7,0.00018184,2]
[392357349,1761399571464,500.0,0.00018184,2]
[392357350,1761399571503,500.0,0.00018184,2]
[392357351,1761399571543,404.44814566,0.00018184,2]
[392357352,1761399572744,-95.55185434,0.00018184,2]
[392357353,1761399572775,-500.0,0.00018184,2]
[392357354,1761399572806,-406.67986738,0.00018184,2]
[392357355,1761399572837,-500.0,0.00018184,2]
[392357356,1761399572870,-500.0,0.00018184,2]
[392357357,1761399572901,-500.0,0.00018184,2]
[392357358,1761399572935,-500.0,0.00018184,2]
[392357359,1761399572966,-500.0,0.00018184,2]
[392357360,1761399572997,-500.0,0.00018184,2]
[392357361,1761399573029,-500.0,0.00018184,2]
[392357362,1761399573065,-495.54655656,0.00018184,2]
[392357363,1761399575613,-4.45344344,0.00018184,2]
[392357364,1761399575646,-500.0,0.00018184,2]
[392357365,1761399575679,-500.0,0.00018184,2]
[392357366,1761399575712,-500.0,0.00018184,2]
[392357367,1761399577590,888.56,0.00018184,2]
[392357368,1761399590658,-196.0,0.00016,2]
[392357369,1761399590695,-196.0,0.0001604,2]
[392357370,1761399590725,-578.00824545,0.000181,2]
[392357371,1761399590825,-196.0,0.00016079,2]
[392357372,1761399590927,-3253.29755814,0.00018185,2]
[392357373,1761399590949,-196.0,0.00018185,2]
[392357374,1761399591008,-9608.01,0.00018185,2]
[392357375,1761399591057,-196.0,0.00016119,2]
[392357376,1761399591067,-9804.01,0.00018185,2]
[392357377,1761399591245,-2981.9527132,0.00018185,2]
[392357378,1761399591276,-160.0,0.00018185,2]
[392357379,1761399591306,-1148.0,0.00018185,2]
[392357380,1761399591336,-500.85794848,0.00018185,2]
[392357381,1761399591439,-196.0,0.00016158,2]
[392357382,1761399591448,-222.38867664,0.00018185,2]
[392357383,1761399593858,-196.0,0.00016198,2]
[392357384,1761399593893,-196.0,0.00016238,2]
[392357385,1761399593925,-196.0,0.00016277,2]
[392357386,1761399593956,-196.0,0.00016317,2]
[392357387,1761399593986,-196.0,0.00016357,2]
[392357388,1761399594017,-196.0,0.00016396,2]
[392357389,1761399594048,-196.0,0.00016436,2]
[392357390,1761399594079,-196.0,0.00016475,2]
[392357391,1761399594109,-277.61132336,0.00018185,2]
[392357392,1761399594139,-1453.89,0.00018185,2]
[392357393,1761399594169,-500.0,0.00018185,2]
[392357394,1761399594198,-500.0,0.00018185,2]
[392357395,1761399594425,-196.0,0.00016515,2]
[392357396,1761399594434,-1205.00735328,0.00018185,2]
[392357397,1761399599777,-196.0,0.00016555,2]
[392357398,1761399599798,-50.69681868,0.00016594,2]
[392357399,1761399604307,-145.30318132,0.00016594,2]
[392357400,1761399604335,-103.81854067,0.00016634,2]
[392357401,1761399606941,-92.18145933,0.00016634,2]
[392357402,1761399606965,-196.0,0.00016674,2]
[392357403,1761399606993,-16.00817914,0.00016713,2]
[392357404,1761399608758,-179.99182086,0.00016713,2]
[392357405,1761399608796,-196.0,0.00016753,2]
[392357406,1761399608834,-196.0,0.00016792,2]
[392357407,1761399608871,-196.0,0.00016832,2]
[392357408,1761399608909,-196.0,0.00016872,2]
[392357409,1761399608945,-196.0,0.00016911,2]
[392357410,1761399608983,-196.0,0.00016951,2]
[392357411,1761399609021,-196.0,0.00016991,2]
[392357412,1761399609060,-196.0,0.0001703,2]
[392357413,1761399609479,-196.0,0.0001707,2]
[392357414,1761399609529,-196.0,0.00017109,2]
[392357415,1761399609566,-196.0,0.00017149,2]
[392357416,1761399609602,-196.0,0.00017189,2]
[392357417,1761399609637,-196.0,0.00017228,2]
[392357418,1761399609672,-196.0,0.00017268,2]
[392357419,1761399609706,-196.0,0.00017308,2]
[392357420,1761399609744,-196.0,0.00017347,2]
[392357421,1761399609780,-196.0,0.00017387,2]
[392357422,1761399609813,-196.0,0.00017426,2]
[392357423,1761399609850,-196.0,0.00017466,2]
[392357424,1761399609885,-196.0,0.00017506,2]
[392357425,1761399609924,-196.0,0.00017545,2]
[392357426,1761399609959,-196.0,0.00017585,2]
[392357427,1761399609993,-196.0,0.00017625,2]
[392357428,1761399610029,-196.0,0.00017664,2]
[392357429,1761399610064,-36.02635828,0.00017704,2]
[392357430,1761399610212,-159.97364172,0.00017704,2]
[392357431,1761399610248,-196.0,0.00017743,2]
[392357432,1761399610282,-196.0,0.00017783,2]
[392357433,1761399610315,-196.0,0.00017823,2]
[392357434,1761399610349,-196.0,0.00017862,2]
[392357435,1761399610382,-196.0,0.00017902,2]
[392357436,1761399610416,-196.0,0.00017942,2]
[392357437,1761399610449,-196.0,0.00017981,2]
[392357438,1761399610482,-196.0,0.00018021,2]
[392357439,1761399610516,-196.0,0.0001806,2]
[392357440,1761399610551,-329.68195029,0.00018085,2]
[392357441,1761399610586,-218.52780951,0.000181,2]
[392357442,1761399610618,-500.0,0.00018173,2]
[392357443,1761399610650,-500.0,0.00018173,2]
[392357444,1761399610682,-500.0,0.00018173,2]
[392357445,1761399610715,-500.0,0.00018173,2]
[392357446,1761399610747,-369.30319696,0.00018184,2]
[392357447,1761399610878,-500.0,0.00018173,2]
[392357448,1761399610911,-317.03680304,0.00018184,2]
[392357449,1761399610943,-500.0,0.00018184,2]
[392357450,1761399610974,-300.0,0.00018184,2]
[392357451,1761399611006,-300.0,0.00018184,2]
[392357452,1761399611039,-300.0,0.00018184,2]
[392357453,1761399611075,-1200.0,0.00018184,2]
[392357454,1761399611110,-300.0,0.00018184,2]
[392357455,1761399611143,-300.0,0.00018184,2]
[392357456,1761399611176,-760.78,0.00018184,2]
[392357457,1761399611209,-203.1337472,0.00018185,2]
[392357458,1761399611369,-38.10889952,0.00018185,2]
[392357459,1761399611401,-575.58,0.00018185,2]
[392357460,1761399611432,-516.20056151,0.00018185,2]
[392357461,1761399611462,-500.0,0.00018185,2]
[392357462,1761399611493,-500.0,0.00018185,2]
[392357463,1761399611524,-500.0,0.00018185,2]
[392357464,1761399611557,-1828.33,0.00018185,2]
[392357465,1761399611588,-494.35107794,0.00018185,2]
[392357466,1761399611632,-94.86892206,0.00018185,2]
[392357467,1761399611663,-500.0,0.00018185,2]
[392357468,1761399611692,-500.0,0.00018185,2]
[392357469,1761399611724,-500.0,0.00018185,2]
[392357470,1761399611755,-500.0,0.00018185,2]
[392357471,1761399611784,-500.0,0.00018185,2]
[392357472,1761399611813,-504.32344064,0.00018185,2]
[392357473,1761399611843,-500.0,0.00018185,2]
[392357474,1761399611873,-503.85,0.00018185,2]
[392357475,1761399611904,-778.2252746,0.00018185,2]
[392357476,1761399611956,-237.4747254,0.00018185,2]
[392357477,1761399612132,-526.68,0.00018185,2]
[392357478,1761399612165,-500.0,0.00018185,2]
[392357479,1761399612198,-886.81,0.00018185,2]
[392357480,1761399612229,-732.26,0.00018185,2]
[392357481,1761399612261,-500.0,0.00018185,2]
[392357482,1761399612293,-500.0,0.00018185,2]
[392357483,1761399612324,-511.82,0.00018185,2]
[392357484,1761399612414,-1725.53,0.00018185,2]
[392357485,1761399612445,-2036.52,0.00018185,2]
[392357486,1761399612476,-500.0,0.00018185,2]
[392357487,1761399612505,-498.54128629,0.00018185,2]
[392357488,1761399614719,-500.0,0.00018185,2]
[392357489,1761399614749,-947.17,0.00018185,2]